lending/lending_fUSD_20240110
["ID","MTS","AMOUNT","RATE_DAILY","PERIOD"]
[311084962,1704900650397,-500.0,0.0003041,2]
[311084963,1704900650407,-500.0,0.0003041,2]
[311084964,1704900650416,-1570.45,0.0003041,2]
[311084965,1704900650426,-500.0,0.0003041,2]
[311084966,1704900650437,-444.72809235,0.0003041,2]
[311084967,1704900650448,-500.0,0.0003041,2]
[311084968,1704900650458,-500.0,0.0003041,2]
[311084969,1704900650468,-500.0,0.0003041,2]
[311084970,1704900650478,-500.0,0.0003041,2]
[311084971,1704900650488,-500.0,0.0003041,2]
[311084972,1704900650498,-500.0,0.0003041,2]
[311084973,1704900650508,-500.0,0.0003041,2]
[311084974,1704900650519,-500.0,0.0003041,2]
[311084975,1704900650529,-500.0,0.0003041,2]
[311084976,1704900650539,-635.68,0.0003041,2]
[311084977,1704900650549,-500.0,0.0003041,2]
[311084978,1704900650560,-549.14,0.0003041,2]
[311084979,1704900650569,-500.0,0.0003041,2]
[311084980,1704900650579,-500.0,0.0003041,2]
[311084981,1704900650589,-1087.18,0.0003041,2]
[311084982,1704900650599,-500.0,0.0003041,2]
[311084983,1704900650609,-500.0,0.0003041,2]
[311084984,1704900650619,-500.0,0.0003041,2]
[311084985,1704900650629,-1006.97,0.0003041,2]
[311084986,1704900650639,-500.0,0.0003041,2]
[311084987,1704900650648,-500.0,0.0003041,2]
[311084988,1704900650658,-500.0,0.0003041,2]
[311084989,1704900650668,-500.0,0.0003041,2]
[311084990,1704900650677,-500.0,0.0003041,2]
[311084991,1704900650687,-500.0,0.0003041,2]
[311084992,1704900650697,-446.91041157,0.0003041,2]
[311084993,1704900650706,-500.0,0.0003041,2]
[311084994,1704900650716,-821.81,0.0003041,2]
[311084995,1704900650725,-500.0,0.0003041,2]
[311084996,1704900650735,-500.0,0.0003041,2]
[311084997,1704900650744,-652.25,0.0003041,2]
[311084998,1704900650755,-500.0,0.0003041,7]
[311084999,1704900650765,-526.47257968,0.0003041,2]
[311085000,1704900650775,-500.0,0.0003041,2]
[311085001,1704900650784,-500.0,0.0003041,2]
[311085002,1704900650794,-500.0,0.0003041,2]
[311085003,1704900650803,-500.0,0.0003041,2]
[311085004,1704900650813,-500.0,0.0003041,2]
[311085005,1704900650823,-500.0,0.0003041,2]
[311085006,1704900650832,-227.56922701,0.0003041,2]
[311085007,1704900650842,-500.0,0.0003041,2]
[311085008,1704900650852,-804.63,0.0003041,2]
[311085009,1704900650861,-199.72,0.0003041,2]
[311085010,1704900650870,-500.0,0.0003041,2]
[311085011,1704900650879,-500.0,0.0003041,2]
[311085012,1704900650889,-500.0,0.0003041,2]
[311085013,1704900650899,-500.0,0.0003041,2]
[311085014,1704900650908,-500.0,0.0003041,2]
[311085015,1704900650919,-500.0,0.0003041,2]
[311085016,1704900650928,-632.67171057,0.0003041,2]
[311085017,1704900650938,-734.66,0.0003041,2]
[311085018,1704900650949,-500.0,0.0003041,2]
[311085019,1704900650958,-500.0,0.0003041,2]
[311085020,1704900650967,-500.0,0.0003041,2]
[311085021,1704900650977,-500.0,0.0003041,2]
[311085022,1704900650987,-500.0,0.0003041,2]
[311085023,1704900650997,-500.0,0.0003041,2]
[311085024,1704900651008,-359.10863598,0.0003041,2]
[311085025,1704900651019,-500.0,0.0003041,2]
[311085026,1704900651029,-942.99,0.0003041,2]
[311085027,1704900651039,-500.0,0.0003041,2]
[311085028,1704900651048,-500.0,0.0003041,2]
[311085029,1704900651058,-500.0,0.0003041,2]
[311085030,1704900651067,-629.55698002,0.0003041,2]
[311085031,1704900651077,-500.0,0.0003041,2]
[311085032,1704900651086,-500.0,0.0003041,2]
[311085033,1704900651096,-500.0,0.0003041,2]
[311085034,1704900651105,-500.0,0.0003041,2]
[311085035,1704900651114,-500.0,0.0003041,2]
[311085036,1704900651124,-500.0,0.0003041,2]
[311085037,1704900651133,-500.0,0.0003041,2]
[311085038,1704900651143,-500.0,0.0003041,2]
[311085039,1704900651152,-500.0,0.0003041,2]
[311085040,1704900651162,-418.61476604,0.0003041,2]
[311085041,1704900651171,-500.0,0.0003041,2]
[311085042,1704900651180,-500.0,0.0003041,2]
[311085043,1704900651190,-500.0,0.0003041,2]
[311085044,1704900651199,-500.0,0.0003041,2]
[311085045,1704900651209,-500.0,0.0003041,2]
[311085046,1704900651219,-500.0,0.0003041,2]
[311085047,1704900651228,-500.0,0.0003041,2]
[311085048,1704900651238,-500.0,0.0003041,2]
[311085049,1704900651249,-500.0,0.0003041,2]
[311085050,1704900651259,-500.0,0.0003041,2]
[311085051,1704900651270,-500.0,0.0003041,2]
[311085052,1704900651279,-500.0,0.0003041,2]
[311085053,1704900651289,-500.0,0.0003041,2]
[311085054,1704900651299,-500.0,0.0003041,2]
[311085055,1704900651308,-500.0,0.0003041,2]
[311085056,1704900651318,-500.0,0.0003041,2]
[311085057,1704900651328,-500.0,0.0003041,2]
[311085058,1704900651337,-500.0,0.0003041,2]
[311085059,1704900651346,-500.0,0.0003041,2]
[311085060,1704900651356,-500.0,0.0003041,2]
[311085061,1704900651365,-1066.85,0.0003041,2]
[311085062,1704900651375,-500.0,0.0003041,2]
[311085063,1704900651385,-500.0,0.0003041,2]
[311085064,1704900651394,-500.0,0.0003041,2]
[311085065,1704900651408,-510.55110765,0.0003041,2]
[311085066,1704900651418,-500.0,0.0003041,2]
[311085067,1704900651427,-500.0,0.0003041,2]
[311085068,1704900651704,-500.0,0.0003041,2]
[311085069,1704900651725,-694.05,0.0003041,2]
[311085070,1704900651734,-500.0,0.0003041,2]
[311085071,1704900651745,-500.0,0.0003041,2]
[311085072,1704900651757,-150.0,0.0003041,2]
[311085073,1704900651766,-250.0,0.0003041,2]
[311085074,1704900651779,-187.61551415,0.0003041,2]
[311085075,1704900651788,-500.0,0.0003041,2]
[311085076,1704900651798,-500.0,0.0003041,2]
[311085077,1704900651809,-500.0,0.0003041,2]
[311085078,1704900651819,-500.0,0.0003041,2]
[311085079,1704900651828,-500.0,0.0003041,2]
[311085080,1704900651838,-500.0,0.0003041,2]
[311085081,1704900651848,-500.0,0.0003041,2]
[311085082,1704900651857,-500.0,0.0003041,2]
[311085083,1704900651867,-500.0,0.0003041,2]
[311085084,1704900651876,-500.0,0.0003041,2]
[311085085,1704900651886,-500.0,0.0003041,2]
[311085086,1704900651896,-500.0,0.0003041,2]
[311085087,1704900651905,-500.0,0.0003041,2]
[311085088,1704900651915,-500.0,0.0003041,2]
[311085089,1704900651925,-500.0,0.0003041,2]
[311085090,1704900651935,-500.0,0.0003041,2]
[311085091,1704900651944,-500.0,0.0003041,2]
[311085092,1704900651953,-303.02447933,0.0003041,2]
[311085093,1704900651963,-500.0,0.0003041,2]
[311085094,1704900651972,-500.0,0.0003041,2]
[311085095,1704900651982,-504.81,0.0003041,2]
[311085096,1704900651992,-500.0,0.0003041,2]
[311085097,1704900652001,-500.0,0.0003041,2]
[311085098,1704900652019,-500.0,0.0003041,2]
[311085099,1704900652028,-500.0,0.0003041,2]
[311085100,1704900652037,-500.0,0.0003041,2]
[311085101,1704900652047,-500.0,0.0003041,2]
[311085102,1704900652057,-500.0,0.0003041,2]
[311085103,1704900652068,-897.0,0.0003041,2]
[311085104,1704900652078,-1597.96,0.0003041,2]
[311085105,1704900652087,-500.0,0.0003041,2]
[311085106,1704900652096,-609.86,0.0003041,2]
[311085107,1704900652106,-500.0,0.0003041,2]
[311085108,1704900652115,-376.48389747,0.0003041,2]
[311085109,1704900652125,-500.0,0.0003041,2]
[311085110,1704900652134,-500.0,0.0003041,2]
[311085111,1704900652144,-500.0,0.0003041,2]
[311085112,1704900652154,-500.0,0.0003041,2]
[311085113,1704900652165,-500.0,0.0003041,2]
[311085114,1704900652175,-500.0,0.0003041,2]
[311085115,1704900652185,-500.0,0.0003041,2]
[311085116,1704900652194,-500.0,0.0003041,2]
[311085117,1704900652204,-500.0,0.0003041,2]
[311085118,1704900652214,-500.0,0.0003041,2]
[311085119,1704900652223,-500.0,0.0003041,2]
[311085120,1704900652232,-500.0,0.0003041,2]
[311085121,1704900652241,-500.0,0.0003041,2]
[311085122,1704900652251,-500.0,0.0003041,2]
[311085123,1704900652264,-500.0,0.0003041,2]
[311085124,1704900652273,-500.0,0.0003041,2]
[311085125,1704900652283,-500.0,0.0003041,2]
[311085126,1704900652293,-500.0,0.0003041,2]
[311085127,1704900652303,-625.42,0.0003041,2]
[311085128,1704900652312,-500.0,0.0003041,2]
[311085129,1704900652321,-500.0,0.0003041,2]
[311085130,1704900652331,-500.0,0.0003041,2]
[311085131,1704900652340,-500.0,0.0003041,2]
[311085132,1704900652350,-500.0,0.0003041,2]
[311085133,1704900652359,-1088.6,0.0003041,2]
[311085134,1704900652369,-500.0,0.0003041,2]
[311085135,1704900652378,-500.0,0.0003041,2]
[311085136,1704900652388,-500.0,0.0003041,2]
[311085137,1704900652397,-500.0,0.0003041,2]
[311085138,1704900652406,-785.49,0.0003041,2]
[311085139,1704900652416,-975.89,0.0003041,2]
[311085140,1704900652425,-500.0,0.0003041,2]
[311085141,1704900652435,-1305.85,0.0003041,2]
[311085142,1704900652444,-500.0,0.0003041,2]
[311085143,1704900652453,-500.0,0.0003041,2]
[311085144,1704900652462,-387.32388455,0.0003041,2]
[311085145,1704900652472,-500.0,0.0003041,2]
[311085146,1704900652481,-500.0,0.0003041,2]
[311085147,1704900652491,-1671.48,0.0003041,2]
[311085148,1704900652500,-500.0,0.0003041,2]
[311085149,1704900652510,-500.0,0.0003041,2]
[311085150,1704900652519,-1079.69,0.0003041,2]
[311085151,1704900652529,-500.0,0.0003041,2]
[311085152,1704900652538,-500.0,0.0003041,2]
[311085153,1704900652548,-1708.78,0.0003041,2]
[311085154,1704900652557,-500.0,0.0003041,2]
[311085155,1704900652567,-500.0,0.0003041,2]
[311085156,1704900652576,-500.0,0.0003041,2]
[311085157,1704900652585,-12281.0,0.0003041,2]
[311085158,1704900652595,-178.62684812,0.0003041,2]
[311085159,1704900652605,-500.0,0.0003041,2]
[311085160,1704900652615,-782.34,0.0003041,2]
[311085161,1704900652624,-500.0,0.0003041,2]
[311085162,1704900652633,-500.0,0.0003041,2]
[311085163,1704900652643,-500.0,0.0003041,2]
[311085164,1704900652653,-4515.22,0.0003041,2]
[311085165,1704900652663,-500.0,0.0003041,2]
[311085166,1704900652673,-500.0,0.0003041,2]
[311085167,1704900652682,-8836.14,0.0003041,2]
[311085168,1704900652691,-500.0,0.0003041,2]
[311085169,1704900652701,-707.11,0.0003041,2]
[311085170,1704900652710,-500.0,0.0003041,2]
[311085171,1704900652719,-500.0,0.0003041,2]
[311085172,1704900652729,-884.97,0.0003041,2]
[311085173,1704900652738,-2259.76,0.0003041,2]
[311085174,1704900652748,-616.1,0.0003041,2]
[311085175,1704900652759,-3899.84,0.0003041,2]
[311085176,1704900652769,-500.0,0.0003041,2]
[311085177,1704900652778,-500.0,0.0003041,2]
[311085178,1704900652788,-500.0,0.0003041,2]
[311085179,1704900652798,-500.0,0.0003041,2]
[311085180,1704900652807,-500.0,0.0003041,2]
[311085181,1704900652817,-615.33,0.0003041,2]
[311085182,1704900652826,-4323.21,0.0003041,2]
[311085183,1704900652836,-1420.6,0.0003041,2]
[311085184,1704900652845,-500.0,0.0003041,2]
[311085185,1704900652855,-500.0,0.0003041,2]
[311085186,1704900652864,-2046.46,0.0003041,2]
[311085187,1704900652873,-4599.5,0.0003041,2]
[311085188,1704900652882,-712.95,0.0003041,2]
[311085189,1704900652892,-500.0,0.0003041,2]
[311085190,1704900652901,-500.0,0.0003041,2]
[311085191,1704900652910,-281.09002142,0.0003041,2]
[311085192,1704900652919,-500.0,0.0003041,2]
[311085193,1704900652928,-795.41,0.0003041,2]
[311085194,1704900652938,-2281.05,0.0003041,2]
[311085195,1704900652947,-296.95516266,0.0003041,2]
[311085196,1704900652957,-2521.56,0.0003041,2]
[311085197,1704900652966,-500.0,0.0003041,2]
[311085198,1704900652975,-843.45,0.0003041,2]
[311085199,1704900652984,-500.0,0.0003041,2]
[311085200,1704900652994,-500.0,0.0003041,2]
[311085201,1704900653006,-500.0,0.0003041,2]
[311085202,1704900653016,-870.26,0.0003041,2]
[311085203,1704900653026,-732.44,0.0003041,2]
[311085204,1704900653036,-1564.13,0.0003041,2]
[311085205,1704900653045,-500.0,0.0003041,2]
[311085206,1704900653054,-500.0,0.0003041,2]
[311085207,1704900653064,-500.0,0.0003041,2]
[311085208,1704900653073,-500.0,0.0003041,2]
[311085209,1704900653083,-627.62,0.0003041,2]
[311085210,1704900653092,-1143.64,0.0003041,2]
[311085211,1704900653101,-1380.85,0.0003041,2]
[311085212,1704900653110,-500.0,0.0003041,2]
[311085213,1704900653119,-500.0,0.0003041,2]
[311085214,1704900653129,-500.0,0.0003041,2]
[311085215,1704900653138,-500.0,0.0003041,2]
[311085216,1704900653147,-500.0,0.0003041,2]
[311085217,1704900653156,-500.0,0.0003041,2]
[311085218,1704900653166,-500.0,0.0003041,2]
[311085219,1704900653175,-1618.66,0.0003041,2]
[311085220,1704900653184,-1036.15,0.0003041,2]
[311085221,1704900653194,-9748.06,0.0003041,2]
[311085222,1704900653203,-500.0,0.0003041,2]
[311085223,1704900653213,-566.17,0.0003041,2]
[311085224,1704900653222,-299.0,0.0003041,2]
[311085225,1704900653231,-553.16,0.0003041,2]
[311085226,1704900653241,-500.0,0.0003041,2]
[311085227,1704900653251,-500.0,0.0003041,2]
[311085228,1704900653261,-500.0,0.0003041,2]
[311085229,1704900653270,-500.0,0.0003041,2]
[311085230,1704900653279,-948.2,0.0003041,2]
[311085231,1704900653289,-500.0,0.0003041,2]
[311085232,1704900653298,-609.23,0.0003041,2]
[311085233,1704900653307,-500.0,0.0003041,2]
[311085234,1704900653316,-500.0,0.0003041,2]
[311085235,1704900653325,-2892.66,0.0003041,2]
[311085236,1704900653334,-1143.5,0.0003041,2]
[311085237,1704900653343,-835.76,0.0003041,2]
[311085238,1704900653353,-580.79,0.0003041,2]
[311085239,1704900653362,-500.0,0.0003041,2]
[311085240,1704900653371,-500.0,0.0003041,2]
[311085241,1704900653382,-500.0,0.0003041,2]
[311085242,1704900653391,-500.0,0.0003041,2]
[311085243,1704900653401,-500.0,0.0003041,2]
[311085244,1704900653410,-500.0,0.0003041,2]
[311085245,1704900653419,-500.0,0.0003041,2]
[311085246,1704900653430,-500.0,0.0003041,2]
[311085247,1704900653439,-500.0,0.0003041,2]
[311085248,1704900653448,-1063.42,0.0003041,2]
[311085249,1704900653457,-936.74,0.0003041,2]
[311085250,1704900653466,-500.0,0.0003041,2]
[311085251,1704900653476,-500.0,0.0003041,2]
[311085252,1704900653486,-559.16,0.0003041,2]
[311085253,1704900653496,-500.0,0.0003041,2]
[311085254,1704900653508,-1234.82,0.0003041,2]
[311085255,1704900653517,-3117.76,0.0003041,2]
[311085256,1704900653526,-500.0,0.0003041,2]
[311085257,1704900653535,-660.85,0.0003041,2]
[311085258,1704900653545,-500.0,0.0003041,2]
[311085259,1704900653555,-532.39,0.0003041,2]
[311085260,1704900653564,-681.75,0.0003041,2]
[311085261,1704900653574,-1276.4,0.0003041,2]
[311085262,1704900653583,-540.08,0.0003041,2]
[311085263,1704900653592,-500.0,0.0003041,2]
[311085264,1704900653602,-1062.18,0.0003041,2]
[311085265,1704900653612,-500.0,0.0003041,2]
[311085266,1704900653621,-500.0,0.0003041,2]
[311085267,1704900653631,-765.99,0.0003041,2]
[311085268,1704900653640,-28468.17,0.0003041,2]
[311085269,1704900653650,-500.0,0.0003041,2]
[311085270,1704900653659,-542.15,0.0003041,2]
[311085271,1704900653669,-2759.59,0.0003041,2]
[311085272,1704900653678,-500.0,0.0003041,2]
[311085273,1704900653688,-700.16,0.0003041,2]
[311085274,1704900653697,-671.02,0.0003041,2]
[311085275,1704900653707,-500.0,0.0003041,2]
[311085276,1704900653716,-500.0,0.0003041,2]
[311085277,1704900653726,-500.0,0.0003041,2]
[311085278,1704900653735,-500.0,0.0003041,2]
[311085279,1704900653744,-1369.41,0.0003041,2]
[311085280,1704900653756,-500.0,0.0003041,2]
[311085281,1704900653765,-824.64,0.0003041,2]
[311085282,1704900653775,-539.29,0.0003041,2]
[311085283,1704900653784,-1279.73,0.0003041,2]
[311085284,1704900653795,-500.0,0.0003041,2]
[311085285,1704900653804,-530.15,0.0003041,2]
[311085286,1704900653813,-500.0,0.0003041,2]
[311085287,1704900653822,-1562.87,0.0003041,2]
[311085288,1704900653832,-500.0,0.0003041,2]
[311085289,1704900653841,-4484.28,0.0003041,2]
[311085290,1704900653851,-500.0,0.0003041,2]
[311085291,1704900653860,-500.0,0.0003041,2]
[311085292,1704900653870,-682.98,0.0003041,2]
[311085293,1704900653879,-5240.86,0.0003041,2]
[311085294,1704900653888,-500.0,0.0003041,2]
[311085295,1704900653897,-500.0,0.0003041,2]
[311085296,1704900653907,-500.0,0.0003041,2]
[311085297,1704900653917,-500.0,0.0003041,2]
[311085298,1704900653926,-1727.37,0.0003041,2]
[311085299,1704900653935,-1211.76,0.0003041,2]
[311085300,1704900653944,-500.0,0.0003041,2]
[311085301,1704900653953,-3480.61,0.0003041,2]
[311085302,1704900653962,-653.43,0.0003041,2]
[311085303,1704900653972,-500.0,0.0003041,2]
[311085304,1704900653981,-547.15,0.0003041,2]
[311085305,1704900653990,-654.46,0.0003041,2]
[311085306,1704900653999,-1452.5,0.0003041,2]
[311085307,1704900654010,-500.0,0.0003041,2]
[311085308,1704900654020,-1039.32,0.0003041,2]
[311085309,1704900654029,-500.0,0.0003041,2]
[311085310,1704900654099,-500.0,0.0003041,2]
[311085311,1704900654108,-500.0,0.0003041,2]
[311085312,1704900654117,-196.57096635,0.0003041,2]
[311085313,1704900654126,-1358.05,0.0003041,2]
[311085314,1704900654134,-500.0,0.0003041,2]
[311085315,1704900654144,-500.0,0.0003041,2]
[311085316,1704900654154,-1748.9,0.0003041,2]
[311085317,1704900654163,-1679.87,0.0003041,2]
[311085318,1704900654172,-500.0,0.0003041,2]
[311085319,1704900654181,-500.0,0.0003041,2]
[311085320,1704900654190,-1298.43,0.0003041,2]
[311085321,1704900654200,-709.8,0.0003041,2]
[311085322,1704900654209,-500.0,0.0003041,2]
[311085323,1704900654219,-500.0,0.0003041,2]
[311085324,1704900654228,-887.15,0.0003041,2]
[311085325,1704900654238,-500.0,0.0003041,2]
[311085326,1704900654247,-500.0,0.0003041,2]
[311085327,1704900654258,-782.21,0.0003041,2]
[311085328,1704900654267,-215.6463443,0.0003041,2]
[311085329,1704900654277,-1199.95,0.0003041,2]
[311085330,1704900654286,-8279.8,0.0003041,2]
[311085331,1704900654296,-500.0,0.0003041,2]
[311085332,1704900654305,-7290.58,0.0003041,2]
[311085333,1704900654315,-3604.72,0.0003041,2]
[311085334,1704900654324,-1664.94,0.0003041,2]
[311085335,1704900654333,-500.0,0.0003041,2]
[311085336,1704900654343,-500.0,0.0003041,2]
[311085337,1704900654352,-500.0,0.0003041,2]
[311085338,1704900654361,-619.18,0.0003041,2]
[311085339,1704900654371,-588.0,0.0003041,2]
[311085340,1704900654380,-500.0,0.0003041,2]
[311085341,1704900654390,-500.0,0.0003041,2]
[311085342,1704900654399,-500.0,0.0003041,2]
[311085343,1704900654409,-500.0,0.0003041,2]
[311085344,1704900654418,-1381.97,0.0003041,2]
[311085345,1704900654427,-766.49,0.0003041,2]
[311085346,1704900654436,-714.61,0.0003041,2]
[311085347,1704900654446,-1425.14,0.0003041,2]
[311085348,1704900654455,-231.62708542,0.0003041,2]
[311085349,1704900654463,-1479.95,0.0003041,2]
[311085350,1704900654473,-2002.23,0.0003041,2]
[311085351,1704900654482,-651.45,0.0003041,2]
[311085352,1704900654490,-2937.34,0.0003041,2]
[311085353,1704900654499,-500.0,0.0003041,2]
[311085354,1704900654510,-1124.46,0.0003041,2]
[311085355,1704900654519,-979.93,0.0003041,2]
[311085356,1704900654527,-276.18832343,0.0003041,2]
[311085357,1704900654537,-500.0,0.0003041,2]
[311085358,1704900654546,-500.0,0.0003041,2]
[311085359,1704900654555,-800.83,0.0003041,2]
[311085360,1704900654565,-667.52,0.0003041,2]
[311085361,1704900654575,-753.48,0.0003041,2]
[311085362,1704900654584,-579.58,0.0003041,2]
[311085363,1704900654593,-862.17,0.0003041,2]
[311085364,1704900654603,-500.0,0.0003041,2]
[311085365,1704900654614,-500.0,0.0003041,2]
[311085366,1704900654624,-2898.57,0.0003041,2]
[311085367,1704900654633,-500.0,0.0003041,2]
[311085368,1704900654643,-500.0,0.0003041,2]
[311085369,1704900654652,-500.0,0.0003041,2]
[311085370,1704900654661,-500.0,0.0003041,2]
[311085371,1704900654671,-1266.52,0.0003041,2]
[311085372,1704900654680,-500.0,0.0003041,2]
[311085373,1704900654690,-500.0,0.0003041,2]
[311085374,1704900654699,-588.55,0.0003041,2]
[311085375,1704900654708,-500.0,0.0003041,2]
[311085376,1704900654718,-500.0,0.0003041,2]
[311085377,1704900654728,-955.19,0.0003041,2]
[311085378,1704900654737,-685.11,0.0003041,2]
[311085379,1704900654746,-4860.5,0.0003041,2]
[311085380,1704900654757,-500.0,0.0003041,2]
[311085381,1704900654766,-2271.39,0.0003041,2]
[311085382,1704900654775,-281.91,0.00030598,2]
[311085383,1704900654784,-500.0,0.00030619,2]
[311085384,1704900654794,-704.07,0.00030629,2]
[311085385,1704900654803,-150.0,0.00030629,2]
[311085386,1704900654813,-407.77,0.00030629,2]
[311085387,1704900654822,-496.93,0.00030629,2]
[311085388,1704900654832,-150.0,0.00030629,2]
[311085389,1704900654841,-183.32,0.00030632,2]
[311085390,1704900654850,-500.0,0.00030681,2]
[311085391,1704900654859,-500.0,0.00030684,2]
[311085392,1704900654868,-505.88629614,0.00030684,2]
[311085393,1704900654877,-500.0,0.00030684,2]
[311085394,1704900654887,-500.0,0.00030684,2]
[311085395,1704900654895,-241.83441224,0.00030684,2]
[311085396,1704900654905,-167.05535967,0.00030684,2]
[311085397,1704900654914,-500.0,0.00030684,2]
[311085398,1704900654923,-495.13872754,0.00030684,2]
[311085399,1704900654932,-500.0,0.00030684,2]
[311085400,1704900654941,-500.0,0.00030684,2]
[311085401,1704900654951,-341.53119944,0.00030684,2]
[311085402,1704900654961,-500.0,0.00030684,2]
[311085403,1704900654971,-500.0,0.00030684,2]
[311085404,1704900654980,-500.0,0.00030684,2]
[311085405,1704900654990,-500.0,0.00030684,2]
[311085406,1704900654999,-500.0,0.00030684,2]
[311085407,1704900655011,-448.321855,0.00030684,2]
[311085408,1704900655021,-500.0,0.00030684,2]
[311085409,1704900655031,-500.0,0.00030684,2]
[311085410,1704900655040,-500.0,0.00030684,2]
[311085411,1704900655050,-500.0,0.00030684,2]
[311085412,1704900655059,-500.0,0.00030684,2]
[311085413,1704900655069,-400.63220672,0.00030684,2]
[311085414,1704900655078,-481.67729772,0.00030684,2]
[311085415,1704900655087,-500.0,0.00030684,2]
[311085416,1704900655096,-500.0,0.00030684,2]
[311085417,1704900655105,-204.62097115,0.00030684,2]
[311085418,1704900655115,-555.86062072,0.00030684,2]
[311085419,1704900655124,-500.0,0.00030684,2]
[311085420,1704900655133,-500.0,0.00030684,2]
[311085421,1704900655142,-1021.1,0.00030684,2]
[311085422,1704900655151,-500.0,0.00030684,2]
[311085423,1704900655160,-500.0,0.00030684,2]
[311085424,1704900655169,-500.0,0.00030684,2]
[311085425,1704900655179,-500.0,0.00030684,2]
[311085426,1704900655188,-500.0,0.00030684,2]
[311085427,1704900655197,-500.0,0.00030684,2]
[311085428,1704900655206,-500.0,0.00030684,2]
[311085429,1704900655215,-500.0,0.00030684,2]
[311085430,1704900655224,-500.0,0.00030684,2]
[311085431,1704900655233,-500.0,0.00030684,2]
[311085432,1704900655242,-500.0,0.00030684,2]
[311085433,1704900655252,-500.0,0.00030684,2]
[311085434,1704900655262,-500.0,0.00030684,2]
[311085435,1704900655273,-500.0,0.00030684,2]
[311085436,1704900655282,-356.9414701,0.00030684,2]
[311085437,1704900655291,-500.0,0.00030684,2]
[311085438,1704900655301,-500.0,0.00030684,2]
[311085439,1704900655310,-500.0,0.00030684,2]
[311085440,1704900655320,-340.43085945,0.00030684,2]
[311085441,1704900655329,-500.0,0.00030684,2]
[311085442,1704900655338,-500.0,0.00030684,2]
[311085443,1704900655347,-500.0,0.00030684,2]
[311085444,1704900655357,-735.94,0.00030684,2]
[311085445,1704900655366,-500.0,0.00030684,2]
[311085446,1704900655375,-655.58,0.00030684,2]
[311085447,1704900655385,-500.0,0.00030684,2]
[311085448,1704900655395,-422.71142761,0.00030684,2]
[311085449,1704900655408,-500.0,0.00030684,2]
[311085450,1704900655418,-500.0,0.00030684,2]
[311085451,1704900655427,-500.0,0.00030684,2]
[311085452,1704900655437,-991.96,0.00030684,2]
[311085453,1704900655447,-500.0,0.00030684,2]
[311085454,1704900655456,-500.0,0.00030684,2]
[311085455,1704900655466,-202.62327858,0.00030684,2]
[311085456,1704900655476,-580.21,0.00030684,2]
[311085457,1704900655486,-500.0,0.00030684,2]
[311085458,1704900655496,-500.0,0.00030684,2]
[311085459,1704900655509,-500.0,0.00030684,2]
[311085460,1704900655519,-500.0,0.00030684,2]
[311085461,1704900655529,-500.0,0.00030684,2]